fUSD/lending_fUSD_20260513
["ID","MTS","AMOUNT","RATE_DAILY","PERIOD"]
[422148214,1778621431000,-2320.94,0.00014043,2]
[422148212,1778621431000,-250.0,0.00014,2]
[422148210,1778621431000,-166.66,0.00013836,2]
[422148211,1778621431000,-166.66,0.00013973,2]
[422148208,1778621431000,-2320.94,0.00013717,2]
[422148219,1778621431000,-2320.94,0.0001437,2]
[422148213,1778621431000,-420.0,0.00014016,2]
[422148204,1778621431000,-150.0,0.00013488,2]
[422148209,1778621431000,-150.0,0.00013787,2]
[422148195,1778621431000,-10498.89316964,0.00013285,2]
[422148196,1778621431000,-37515.57756651,0.00013285,2]
[422148197,1778621431000,-14808.07683503,0.00013285,2]
[422148199,1778621431000,-824.64630649,0.00013385,2]
[422148198,1778621431000,-200.0,0.00013317,2]
[422148202,1778621431000,-150.0,0.00013488,2]
[422148201,1778621431000,-7283.02935234,0.00013457,2]
[422148203,1778621431000,-150.0,0.00013488,2]
[422148205,1778621431000,-150.0,0.00013488,2]
[422148207,1778621431000,-166.66,0.00013699,2]
[422148200,1778621431000,-2320.94,0.0001339,2]
[422148224,1778621432000,-500.0,0.00014497,2]
[422148221,1778621432000,-150.0,0.00014387,2]
[422148223,1778621432000,-2000.0,0.00014497,2]
[422148222,1778621432000,-255.0,0.000144,2]
[422148225,1778621432000,-63005.75802149,0.000145,2]
[422148227,1778621432000,-398.23314633,0.000145,2]
[422148234,1778621432000,-1123.1044889,0.000145,2]
[422148228,1778621432000,-1557.27262659,0.000145,2]
[422148229,1778621432000,-613.34592522,0.000145,2]
[422148231,1778621432000,-371.24548325,0.000145,2]
[422148230,1778621432000,-1255.39034168,0.000145,2]
[422148233,1778621432000,-625.05307491,0.000145,2]
[422148232,1778621432000,-4726.3500637,0.000145,2]
[422148226,1778621432000,-937.35340917,0.000145,2]
[422148236,1778621437000,-500.0,0.00013284,2]
[422148238,1778621437000,-190.60281207,0.00013284,2]
[422148237,1778621437000,-266.36502803,0.00013284,2]
[422148235,1778621437000,-462.9019149,0.00013284,2]
[422148324,1778621438000,-981.35376394,0.00013284,2]
[422148284,1778621438000,-981.35376394,0.00013284,2]
[422148286,1778621438000,-981.35376394,0.00013284,2]
[422148290,1778621438000,-981.35376394,0.00013284,2]
[422148313,1778621438000,-981.35376394,0.00013284,2]
[422148288,1778621438000,-981.35376394,0.00013284,2]
[422148297,1778621438000,-981.35376394,0.00013284,2]
[422148326,1778621438000,-981.35376394,0.00013284,2]
[422148302,1778621438000,-527.2,0.00013284,2]
[422148292,1778621438000,-189.17828686,0.00013284,2]
[422148295,1778621438000,-792.17547708,0.00013284,2]
[422148304,1778621438000,-100.11399468,0.00013284,2]
[422148306,1778621438000,-335.65937092,0.00013284,2]
[422148308,1778621438000,-645.69439302,0.00013284,2]
[422148311,1778621438000,-981.35376394,0.00013284,2]
[422148281,1778621438000,-981.35376394,0.00013284,2]
[422148299,1778621438000,-354.03976926,0.00013284,2]
[422148282,1778621438000,-981.35376394,0.00013284,2]
[422148269,1778621438000,-500.0,0.00013284,2]
[422148247,1778621438000,-358.56478676,0.00013284,2]
[422148250,1778621438000,-141.43521324,0.00013284,2]
[422148244,1778621438000,-309.39718793,0.00013284,2]
[422148252,1778621438000,-500.0,0.00013284,2]
[422148254,1778621438000,-257.54762469,0.00013284,2]
[422148257,1778621438000,-500.0,0.00013284,2]
[422148259,1778621438000,-500.0,0.00013284,2]
[422148271,1778621438000,-499.98339619,0.00013284,2]
[422148261,1778621438000,-500.0,0.00013284,2]
[422148273,1778621438000,-500.0,0.00013284,2]
[422148277,1778621438000,-981.35376394,0.00013284,2]
[422148275,1778621438000,-981.35376394,0.00013284,2]
[422148263,1778621438000,-500.0,0.00013284,2]
[422148265,1778621438000,-500.0,0.00013284,2]
[422148267,1778621438000,-500.0,0.00013284,2]
[422148279,1778621438000,-981.35376394,0.00013284,2]
[422148328,1778621438000,-981.35376394,0.00013284,2]
[422148344,1778621438000,-981.35376394,0.00013284,2]
[422148317,1778621438000,-981.35376394,0.00013284,2]
[422148361,1778621438000,-981.35376394,0.00013284,2]
[422148370,1778621438000,-981.35376394,0.00013284,2]
[422148368,1778621438000,-981.35376394,0.00013284,2]
[422148366,1778621438000,-981.35376394,0.00013284,2]
[422148372,1778621438000,-981.35376394,0.00013284,2]
[422148376,1778621438000,-981.35376394,0.00013284,2]
[422148374,1778621438000,-981.35376394,0.00013284,2]
[422148378,1778621438000,-981.35376394,0.00013284,2]
[422148380,1778621438000,-981.35376394,0.00013284,2]
[422148384,1778621438000,-981.35376394,0.00013284,2]
[422148386,1778621438000,-7283.02935234,0.00013698,2]
[422148388,1778621438000,-11764.60402493,0.000145,2]
[422148394,1778621438000,-1678.19997191,0.000145,2]
[422148382,1778621438000,-981.35376394,0.00013284,2]
[422148319,1778621438000,-981.35376394,0.00013284,2]
[422148364,1778621438000,-981.35376394,0.00013284,2]
[422148359,1778621438000,-981.35376394,0.00013284,2]
[422148363,1778621438000,-981.35376394,0.00013284,2]
[422148355,1778621438000,-981.35376394,0.00013284,2]
[422148315,1778621438000,-981.35376394,0.00013284,2]
[422148321,1778621438000,-981.35376394,0.00013284,2]
[422148334,1778621438000,-981.35376394,0.00013284,2]
[422148330,1778621438000,-981.35376394,0.00013284,2]
[422148336,1778621438000,-981.35376394,0.00013284,2]
[422148332,1778621438000,-981.35376394,0.00013284,2]
[422148357,1778621438000,-981.35376394,0.00013284,2]
[422148341,1778621438000,-981.35376394,0.00013284,2]
[422148338,1778621438000,-981.35376394,0.00013284,2]
[422148343,1778621438000,-981.35376394,0.00013284,2]
[422148348,1778621438000,-981.35376394,0.00013284,2]
[422148346,1778621438000,-981.35376394,0.00013284,2]
[422148345,1778621438000,-981.35376394,0.00013284,2]
[422148347,1778621438000,-981.35376394,0.00013284,2]
[422148351,1778621438000,-981.35376394,0.00013284,2]
[422148353,1778621438000,-981.35376394,0.00013284,2]
[422148342,1778621438000,-981.35376394,0.00013284,2]
[422148502,1778621439000,-11362.46206196,0.000146,2]
[422148499,1778621439000,-1411944.08942192,0.000145,2]
[422148501,1778621439000,-347.46,0.000146,2]
[422148500,1778621439000,-7113.02477226,0.000145,2]
[422148505,1778621439000,-2293.3448,0.00014644,2]
[422148504,1778621439000,-11362.46206188,0.00014633,2]
[422148498,1778621439000,-7283.02935234,0.00013938,2]
[422148507,1778621439000,-11362.46206188,0.00014667,2]
[422148506,1778621439000,-1000.0,0.00014645,2]
[422148508,1778621439000,-150.0,0.00014687,2]
[422148503,1778621439000,-66834.0096,0.000146,2]
[422148509,1778621439000,-374.85260384,0.000147,2]
[422148510,1778621439000,-5000.0,0.000147,2]
[422148511,1778621439000,-1651.50537186,0.000147,2]
[422148536,1778621440000,-500.0,0.00014799,2]
[422148537,1778621440000,-500.0,0.00014799,2]
[422148539,1778621440000,-412.34123343,0.00014799,2]
[422148538,1778621440000,-500.0,0.00014799,2]
[422148541,1778621440000,-500.0,0.00014799,2]
[422148544,1778621440000,-500.0,0.00014799,2]
[422148545,1778621440000,-500.0,0.00014799,2]
[422148540,1778621440000,-500.0,0.00014799,2]
[422148546,1778621440000,-500.0,0.00014799,2]
[422148543,1778621440000,-500.0,0.00014799,2]
[422148535,1778621440000,-500.0,0.00014799,2]
[422148547,1778621440000,-500.0,0.00014799,2]
[422148548,1778621440000,-500.0,0.00014799,2]
[422148549,1778621440000,-500.0,0.00014799,2]
[422148550,1778621440000,-500.0,0.00014799,2]
[422148552,1778621440000,-500.0,0.00014799,2]
[422148554,1778621440000,-500.0,0.00014799,2]
[422148555,1778621440000,-500.0,0.00014799,2]
[422148551,1778621440000,-500.0,0.00014799,2]
[422148542,1778621440000,-500.0,0.00014799,2]
[422148533,1778621440000,-458.73806424,0.00014799,2]
[422148532,1778621440000,-500.0,0.00014799,2]
[422148531,1778621440000,-500.0,0.00014799,2]
[422148553,1778621440000,-500.0,0.00014799,2]
[422148513,1778621440000,-397.96062188,0.000147,2]
[422148515,1778621440000,-1651.50537179,0.00014722,2]
[422148512,1778621440000,-11362.46206188,0.000147,2]
[422148514,1778621440000,-10000.0,0.000147,2]
[422148516,1778621440000,-11362.46206188,0.00014733,2]
[422148517,1778621440000,-1651.50537179,0.00014744,2]
[422148518,1778621440000,-3678.22055067,0.00014746,2]
[422148519,1778621440000,-263.50783151,0.00014746,2]
[422148534,1778621440000,-592.06442814,0.00014799,2]
[422148520,1778621440000,-2251.65069118,0.00014746,2]
[422148522,1778621440000,-11362.46206188,0.00014767,2]
[422148527,1778621440000,-500.0,0.00014799,2]
[422148525,1778621440000,-1450.56465078,0.0001479,2]
[422148526,1778621440000,-500.0,0.00014799,2]
[422148523,1778621440000,-6013.0,0.00014767,2]
[422148528,1778621440000,-500.0,0.00014799,2]
[422148524,1778621440000,-1651.50537179,0.00014789,2]
[422148529,1778621440000,-500.0,0.00014799,2]
[422148530,1778621440000,-500.0,0.00014799,2]
[422148521,1778621440000,-1651.50537179,0.00014767,2]
[422148556,1778621440000,-500.0,0.00014799,2]
[422148573,1778621440000,-35278.10618017,0.0001485,2]
[422148559,1778621440000,-2000.0,0.000148,2]
[422148604,1778621440000,-9288.5734875,0.00014991,2]
[422148601,1778621440000,-551.38,0.0001499,2]
[422148606,1778621440000,-477879.6481894,0.00014991,2]
[422148608,1778621440000,-278785.4330248,0.00014991,2]
[422148610,1778621440000,-151.0,0.00014997,2]
[422148612,1778621440000,-151.0,0.00014997,2]
[422148615,1778621440000,-163.488,0.00014999,2]
[422148614,1778621440000,-151.0,0.00014997,2]
[422148558,1778621440000,-500.0,0.00014799,2]
[422148596,1778621440000,-500.0,0.0001499,2]
[422148622,1778621440000,-413860.90700459,0.00015,2]
[422148621,1778621440000,-666.0,0.00014999,2]
[422148620,1778621440000,-300.0,0.00014999,2]
[422148618,1778621440000,-300.0,0.00014999,2]
[422148619,1778621440000,-666.0,0.00014999,2]
[422148625,1778621440000,-9324.79362834,0.00015,2]
[422148626,1778621440000,-671.81221062,0.00015,2]
[422148624,1778621440000,-29319.30123661,0.00015,2]
[422148628,1778621440000,-9954.62348864,0.00015,2]
[422148627,1778621440000,-2000.0,0.00015,2]
[422148623,1778621440000,-2357.27069278,0.00015,2]
[422148588,1778621440000,-348.13,0.00014985,2]
[422148616,1778621440000,-300.0,0.00014999,2]
[422148598,1778621440000,-500.0,0.0001499,2]
[422148599,1778621440000,-500.0,0.0001499,2]
[422148561,1778621440000,-11362.46206188,0.000148,2]
[422148557,1778621440000,-500.0,0.00014799,2]
[422148560,1778621440000,-33160.7925,0.000148,2]
[422148563,1778621440000,-397.96062188,0.000148,2]
[422148569,1778621440000,-1651.50537179,0.00014833,2]
[422148576,1778621440000,-11362.46206188,0.00014867,2]
[422148578,1778621440000,-1651.50537179,0.00014878,2]
[422148565,1778621440000,-216.33,0.000148,2]
[422148580,1778621440000,-500.0,0.00014899,2]
[422148575,1778621440000,-1651.50537179,0.00014856,2]
[422148571,1778621440000,-11362.46206188,0.00014833,2]
[422148567,1778621440000,-1651.50537179,0.00014811,2]
[422148582,1778621440000,-11362.46206188,0.000149,2]
[422148585,1778621440000,-397.96062188,0.000149,2]
[422148584,1778621440000,-1651.50537179,0.000149,2]
[422148587,1778621440000,-214.86625456,0.00014913,2]
[422148590,1778621440000,-150.0,0.00014986,2]
[422148593,1778621440000,-157.24131601,0.00014986,2]
[422148603,1778621440000,-106389.5039797,0.00014991,2]
[422148594,1778621440000,-1450.56465078,0.0001499,2]
[422148640,1778621442000,-1359.90032221,0.00015,2]
[422148638,1778621442000,-651.60766194,0.00015,2]
[422148642,1778621442000,-918.47065819,0.00015,2]
[422148641,1778621442000,-11804.01769063,0.00015,2]
[422148643,1778621442000,-1079.88131655,0.00015,2]
[422148639,1778621442000,-1395.8112961,0.00015,2]
[422148674,1778621445000,-1362.91705858,0.00015,2]
[422148673,1778621445000,-154773.56847201,0.00015,2]
[422148671,1778621445000,-7283.02935234,0.00014179,2]
[422148672,1778621445000,-178646.76611325,0.00015,2]
[422148676,1778621446000,-1123.71239335,0.00015,2]
[422148675,1778621446000,-431.885,0.00015,2]
[422148678,1778621446000,-2533.59916637,0.00015,2]
[422148679,1778621446000,-197019.03188155,0.00015,2]
[422148677,1778621446000,-1078.07,0.00015,2]
[422148683,1778621447000,-653.68979996,0.00015,2]
[422148682,1778621447000,-967.0,0.00015,2]
[422148681,1778621447000,-1317.84509369,0.00015,2]
[422148680,1778621447000,-1611.90403973,0.00015,2]
[422148687,1778621874000,5000.0,0.00041304,120]
[422148688,1778621953000,150.85,6.392e-05,2]
[422148689,1778622025000,729.06,0.00041304,120]
[422148691,1778622025000,729.06,0.00041304,120]
[422148690,1778622025000,729.06,0.00041304,120]
[422148692,1778622026000,729.06,0.00041304,120]
[422148695,1778622026000,729.06,0.00041304,120]
[422148694,1778622026000,729.06,0.00041304,120]
[422148693,1778622026000,729.06,0.00041304,120]
[422148696,1778622027000,729.06,0.00041304,120]
[422148700,1778622028000,729.06,0.00041304,120]
[422148699,1778622028000,729.06,0.00041304,120]
[422148698,1778622028000,729.06,0.00041304,120]
[422148697,1778622028000,729.06,0.00041304,120]
[422148704,1778622029000,729.06,0.00041304,120]
[422148703,1778622029000,729.06,0.00041304,120]
[422148702,1778622029000,729.06,0.00041304,120]
[422148701,1778622029000,729.06,0.00041304,120]
[422148705,1778622030000,729.06,0.00041304,120]
[422148707,1778622030000,729.06,0.00041304,120]
[422148706,1778622030000,729.06,0.00041304,120]
[422148708,1778622030000,729.06,0.00041304,120]
[422148712,1778622031000,729.17536254,0.00041304,120]
[422148711,1778622031000,729.06,0.00041304,120]
[422148710,1778622031000,729.06,0.00041304,120]
[422148709,1778622031000,729.06,0.00041304,120]
[422148715,1778622119000,168.73,0.00011931,2]
[422148717,1778622193000,208.2157166,0.00012012,2]
[422148716,1778622193000,484.03702771,0.00012012,2]
[422148718,1778622249000,1562.0,0.00041304,120]
[422148719,1778622252000,1562.0,0.00041304,120]
[422148720,1778622255000,1562.0,0.00041304,120]
[422148721,1778622258000,1562.0,0.00041304,120]
[422148722,1778622261000,1562.0,0.00041304,120]
[422148723,1778622264000,1562.0,0.00041304,120]
[422148724,1778622267000,1562.0,0.00041304,120]
[422148725,1778622270000,1562.0,0.00041304,120]
[422148726,1778622273000,1562.0,0.00041304,120]
[422148727,1778622276000,1562.0,0.00041304,120]
[422148728,1778622279000,1562.0,0.00041304,120]
[422148729,1778622282000,1562.0,0.00041304,120]
[422148730,1778622285000,1562.0,0.00041304,120]
[422148731,1778622288000,1562.0,0.00041304,120]
[422148732,1778622291000,1562.0,0.00041304,120]
[422148733,1778622294000,1562.0,0.00041304,120]
[422148734,1778622297000,1319.62,0.00041304,120]
[422148735,1778622447000,250.27,0.00011854,2]
[422148747,1778622631000,-11105.10470546,0.00011973,2]
[422148739,1778622631000,-1498.95,0.00011821,2]
[422148740,1778622631000,-249.73,0.00011854,2]
[422148742,1778622631000,-300.0,0.00011972,2]
[422148743,1778622631000,-1200.0,0.00011972,2]
[422148741,1778622631000,-300.0,0.00011972,2]
[422148744,1778622631000,-2221.67551038,0.00011973,2]
[422148745,1778622631000,-2686.57613057,0.00011973,2]
[422148746,1778622631000,-3725.08365359,0.00011973,2]
[422148749,1778622631000,-1307.74725569,0.00012012,2]
[422148738,1778622631000,-913.236535,0.00011762,2]
[422148748,1778622631000,-182.21,0.00011996,2]
[422148759,1778622631000,-150.0,0.0001277,2]
[422148758,1778622631000,-800.0,0.000127,4]
[422148757,1778622631000,-500.0,0.000126,4]
[422148756,1778622631000,-163.92,0.00012509,2]
[422148751,1778622631000,-500.0,0.00012233,2]
[422148755,1778622631000,-11501.0574,0.000125,2]
[422148753,1778622631000,-287.14,0.00012479,2]
[422148752,1778622631000,-150.0,0.00012284,2]
[422148750,1778622631000,-179.13317937,0.00012133,2]
[422148754,1778622631000,-200.0,0.000125,4]
[422148761,1778622632000,-463.60708434,0.00012771,2]
[422148760,1778622632000,-77775.29352603,0.00012771,2]
[422148768,1778622637000,-1900.0,0.00012771,2]
[422148763,1778622637000,-2209.94260425,0.00012771,2]
[422148765,1778622637000,-2094.00468701,0.00012771,2]
[422148766,1778622637000,-410.88792494,0.00012771,2]
[422148767,1778622637000,-347.25659751,0.00012771,2]
[422148764,1778622637000,-5297.37439239,0.00012771,2]
[422148771,1778622637000,-363.98,0.00012771,2]
[422148770,1778622637000,-1585.6253758,0.00012771,2]
[422148773,1778622637000,-5000.0,0.00012771,2]
[422148772,1778622637000,-598.73220773,0.00012771,2]
[422148775,1778622637000,-566.82305573,0.000128,2]
[422148774,1778622637000,-1100.0,0.000128,4]
[422148769,1778622637000,-6000.0,0.00012771,2]
[422148814,1778622638000,-500.0,0.00013184,2]
[422148810,1778622638000,-500.0,0.00013184,2]
[422148812,1778622638000,-500.0,0.00013184,2]
[422148825,1778622638000,-500.0,0.00013184,2]
[422148818,1778622638000,-500.0,0.00013184,2]
[422148821,1778622638000,-500.0,0.00013184,2]
[422148823,1778622638000,-500.0,0.00013184,2]
[422148829,1778622638000,-515.22794494,0.00013184,2]
[422148827,1778622638000,-500.0,0.00013184,2]
[422148835,1778622638000,-515.22794494,0.00013184,2]
[422148831,1778622638000,-515.22794494,0.00013184,2]
[422148833,1778622638000,-515.22794494,0.00013184,2]
[422148844,1778622638000,-515.22794494,0.00013184,2]
[422148837,1778622638000,-515.22794494,0.00013184,2]
[422148848,1778622638000,-515.22794494,0.00013184,2]
[422148846,1778622638000,-515.22794494,0.00013184,2]
[422148839,1778622638000,-515.22794494,0.00013184,2]
[422148842,1778622638000,-515.22794494,0.00013184,2]
[422148816,1778622638000,-447.52995746,0.00013184,2]
[422148840,1778622638000,-515.22794494,0.00013184,2]
[422148808,1778622638000,-500.0,0.00013184,2]
[422148785,1778622638000,-356.27569318,0.00012907,2]
[422148803,1778622638000,-500.0,0.00013184,2]
[422148850,1778622638000,-515.22794494,0.00013184,2]
[422148776,1778622638000,-4613.41613637,0.000128,2]
[422148777,1778622638000,-5544.25699035,0.000128,2]
[422148779,1778622638000,-1894.42310382,0.000128,2]
[422148781,1778622638000,-500.0,0.0001287,2]
[422148778,1778622638000,-532.84623537,0.000128,2]
[422148782,1778622638000,-161.837,0.0001287,2]
[422148780,1778622638000,-2150.84047881,0.000128,2]
[422148784,1778622638000,-1400.0,0.000129,4]
[422148806,1778622638000,-227.5230968,0.00013184,2]
[422148783,1778622638000,-1954.637,0.0001287,2]
[422148787,1778622638000,-214.86625456,0.00013084,2]
[422148788,1778622638000,-4613.41613634,0.000131,2]
[422148789,1778622638000,-168.73,0.00013124,2]
[422148790,1778622638000,-1680.0,0.00013169,2]
[422148795,1778622638000,-324.03134043,0.00013184,2]
[422148797,1778622638000,-500.0,0.00013184,2]
[422148792,1778622638000,-150.44813387,0.00013175,2]
[422148799,1778622638000,-500.0,0.00013184,2]
[422148801,1778622638000,-315.24143664,0.00013184,2]
[422148786,1778622638000,-5544.25699027,0.00013033,2]
[422148852,1778622638000,-515.22794494,0.00013184,2]
[422148861,1778622638000,-515.22794494,0.00013184,2]
[422148856,1778622638000,-515.22794494,0.00013184,2]
[422148891,1778622638000,-515.22794494,0.00013184,2]
[422148892,1778622638000,-515.22794494,0.00013184,2]
[422148896,1778622638000,-515.22794494,0.00013184,2]
[422148895,1778622638000,-515.22794494,0.00013184,2]
[422148894,1778622638000,-515.22794494,0.00013184,2]
[422148897,1778622638000,-515.22794494,0.00013184,2]
[422148898,1778622638000,-515.22794494,0.00013184,2]
[422148900,1778622638000,-515.22794494,0.00013184,2]
[422148899,1778622638000,-515.22794494,0.00013184,2]
[422148893,1778622638000,-515.22794494,0.00013184,2]
[422148901,1778622638000,-515.22794494,0.00013184,2]
[422148905,1778622638000,-88073.4027749,0.00013185,2]
[422148903,1778622638000,-515.22794494,0.00013184,2]
[422148906,1778622638000,-667.96197469,0.00013185,2]
[422148907,1778622638000,-298.1867,0.00013185,2]
[422148908,1778622638000,-1678.19997191,0.00013185,2]
[422148909,1778622638000,-379.05483155,0.00013185,2]
[422148911,1778622638000,-3291.01152413,0.00013185,2]
[422148910,1778622638000,-1051.74850456,0.00013185,2]
[422148854,1778622638000,-515.22794494,0.00013184,2]
[422148902,1778622638000,-515.22794494,0.00013184,2]
[422148890,1778622638000,-515.22794494,0.00013184,2]
[422148904,1778622638000,-515.22794494,0.00013184,2]
[422148889,1778622638000,-515.22794494,0.00013184,2]
[422148867,1778622638000,-515.22794494,0.00013184,2]
[422148888,1778622638000,-515.22794494,0.00013184,2]
[422148865,1778622638000,-515.22794494,0.00013184,2]
[422148871,1778622638000,-515.22794494,0.00013184,2]
[422148863,1778622638000,-515.22794494,0.00013184,2]
[422148869,1778622638000,-515.22794494,0.00013184,2]
[422148873,1778622638000,-515.22794494,0.00013184,2]
[422148875,1778622638000,-345.69663316,0.00013184,2]
[422148876,1778622638000,-169.53131178,0.00013184,2]
[422148858,1778622638000,-515.22794494,0.00013184,2]
[422148877,1778622638000,-515.22794494,0.00013184,2]
[422148883,1778622638000,-515.22794494,0.00013184,2]
[422148884,1778622638000,-515.22794494,0.00013184,2]
[422148881,1778622638000,-515.22794494,0.00013184,2]
[422148886,1778622638000,-515.22794494,0.00013184,2]
[422148879,1778622638000,-515.22794494,0.00013184,2]
[422148880,1778622638000,-515.22794494,0.00013184,2]
[422148887,1778622638000,-515.22794494,0.00013184,2]
[422148878,1778622638000,-515.22794494,0.00013184,2]
[422148882,1778622638000,-515.22794494,0.00013184,2]
[422148955,1778622639000,-150.0,0.00013787,2]
[422148951,1778622639000,-5544.25699027,0.00013733,2]
[422148953,1778622639000,-150.0,0.00013752,2]
[422148952,1778622639000,-150.0,0.00013737,2]
[422148954,1778622639000,-150.0,0.00013787,2]
[422148944,1778622639000,-1365.04,0.00013699,2]
[422148949,1778622639000,-200.0,0.00013699,2]
[422148948,1778622639000,-150.99,0.00013699,2]
[422148945,1778622639000,-1536.85,0.00013699,2]
[422148957,1778622639000,-194.95,0.00013827,2]
[422148947,1778622639000,-6056.41,0.00013699,2]
[422148946,1778622639000,-24999.99,0.00013699,2]
[422148950,1778622639000,-4613.41613634,0.000137,2]
[422148958,1778622639000,-150.0,0.0001384,2]
[422148966,1778622639000,-150.0,0.00013987,2]
[422148959,1778622639000,-566.82305573,0.0001385,2]
[422148960,1778622639000,-150.0,0.00013862,2]
[422148961,1778622639000,-255.0,0.00013868,2]
[422148962,1778622639000,-150.0,0.00013928,2]
[422148964,1778622639000,-150.0,0.00013987,2]
[422148965,1778622639000,-150.0,0.00013987,2]
[422148963,1778622639000,-5544.25699027,0.00013967,2]
[422148972,1778622639000,-150.0,0.00014087,2]
[422148967,1778622639000,-182.21,0.00013996,2]
[422148969,1778622639000,-150.0,0.00014017,2]
[422148968,1778622639000,-4613.41613634,0.00014,2]
[422148970,1778622639000,-200.0,0.00014075,2]
[422148942,1778622639000,-299.99,0.00013699,2]
[422148956,1778622639000,-150.0,0.00013821,2]
[422148943,1778622639000,-61607.49,0.00013699,2]
[422148922,1778622639000,-150.0,0.00013488,2]
[422148939,1778622639000,-9999.99,0.00013699,2]
[422148971,1778622639000,-150.0,0.00014087,2]
[422148912,1778622639000,-469.73578931,0.00013185,2]
[422148913,1778622639000,-974.33676083,0.00013185,2]
[422148919,1778622639000,-150.0,0.00013488,2]
[422148914,1778622639000,-1403116.36116812,0.00013185,2]
[422148917,1778622639000,-4613.41613634,0.000134,2]
[422148921,1778622639000,-150.0,0.00013488,2]
[422148918,1778622639000,-208.2157166,0.00013486,2]
[422148920,1778622639000,-150.0,0.00013488,2]
[422148915,1778622639000,-5544.25699027,0.00013267,2]
[422148916,1778622639000,-7369.21205918,0.00013274,2]
[422148923,1778622639000,-150.0,0.00013488,2]
[422148925,1778622639000,-150.0,0.00013488,2]
[422148941,1778622639000,-1195.28,0.00013699,2]
[422148924,1778622639000,-150.0,0.00013488,2]
[422148931,1778622639000,-150.0,0.00013654,2]
[422148929,1778622639000,-150.0,0.00013576,2]
[422148927,1778622639000,-5544.25699027,0.000135,2]
[422148932,1778622639000,-150.0,0.00013664,2]
[422148930,1778622639000,-150.0,0.00013613,2]
[422148928,1778622639000,-2000.0,0.00013513,2]
[422148934,1778622639000,-1215.06,0.00013699,2]
[422148933,1778622639000,-4104.55,0.00013699,2]
[422148935,1778622639000,-9999.99,0.00013699,2]
[422148937,1778622639000,-328.68,0.00013699,2]
[422148936,1778622639000,-999.99,0.00013699,2]
[422148940,1778622639000,-4999.99,0.00013699,2]
[422148938,1778622639000,-7840.61,0.00013699,2]
[422148926,1778622639000,-150.0,0.00013488,2]
[422148973,1778622639000,-150.0,0.00014105,2]
[422149026,1778622639000,-9888.9731877,0.00014961,2]
[422148974,1778622639000,-150.0,0.00014112,2]
[422149011,1778622639000,-150.0,0.00014722,2]
[422149008,1778622639000,-5544.25699027,0.00014667,2]
[422149009,1778622639000,-150.0,0.00014687,2]
[422149007,1778622639000,-540.119095,0.00014662,2]
[422149014,1778622639000,-150.0,0.0001481,2]
[422149013,1778622639000,-200.0,0.000148,5]
[422149015,1778622639000,-150.0,0.0001482,2]
[422149017,1778622639000,-150.0,0.00014898,2]
[422149019,1778622639000,-179.32823325,0.000149,2]
[422149016,1778622639000,-150.0,0.00014861,2]
[422149018,1778622639000,-184.61629305,0.000149,2]
[422149020,1778622639000,-19830.85656988,0.000149,3]
[422149021,1778622639000,-200.0,0.000149,5]
[422149012,1778622639000,-150.0,0.00014737,2]
[422149023,1778622639000,-4613.41613634,0.000149,2]
[422149024,1778622639000,-5544.25699027,0.000149,2]
[422149036,1778622639000,-150.0,0.00014986,2]
[422149025,1778622639000,-102458.8136812,0.00014961,2]
[422149027,1778622639000,-22810.2251418,0.00014961,2]
[422149028,1778622639000,-2535.0117332,0.00014961,2]
[422149037,1778622639000,-150.0,0.00014986,2]
[422149030,1778622639000,-150.00000001,0.00014986,2]
[422149031,1778622639000,-175.29480257,0.00014986,2]
[422149029,1778622639000,-102458.8136812,0.00014961,2]